bitfinex-derivatives/quotes_BTCF0:USTF0_20250902
["timestamp","ask_amount","ask_price","bid_price","bid_amount"]
[1756785594276,0.25775937,110400.0,110390.0,1.75466313]
[1756785595371,0.25775937,110400.0,110390.0,0.92798313]
[1756785595568,0.25775937,110400.0,110390.0,1.75462313]
[1756785597275,0.25775937,110400.0,110390.0,0.92798313]
[1756785597475,0.02374624,110400.0,110390.0,1.75470989]
[1756785599276,0.02374624,110400.0,110390.0,1.50470989]
[1756785599572,0.02374624,110400.0,110390.0,1.50466989]
[1756785600279,0.02374624,110400.0,110390.0,0.67806989]
[1756785600473,0.02374624,110400.0,110390.0,1.50466989]
[1756785600776,0.003,110400.0,110390.0,1.50466989]
[1756785601176,0.003,110400.0,110390.0,1.27057]
[1756785601374,0.003,110400.0,110390.0,1.50466989]
[1756785601575,0.003,110400.0,110390.0,1.27057]
[1756785601770,0.003,110400.0,110390.0,1.50466989]
[1756785603368,0.003,110400.0,110390.0,1.56986454]
[1756785603578,0.003,110400.0,110390.0,1.56903691]
[1756785604280,0.003,110400.0,110390.0,1.50384226]
[1756785604481,0.003,110400.0,110390.0,1.56903691]
[1756785604676,0.003,110400.0,110390.0,1.87903691]
[1756785605072,0.003,110400.0,110390.0,1.81384226]
[1756785605473,0.24056989,110400.0,110390.0,0.44314237]
[1756785605677,0.23956989,110400.0,110390.0,0.44314237]
[1756785605881,0.24056989,110400.0,110390.0,0.44314237]
[1756785606077,0.49056989,110400.0,110390.0,0.44314237]
[1756785606386,0.001,110400.0,110390.0,0.74246239]
[1756785606882,0.003,110400.0,110390.0,0.74246239]
[1756785607082,0.003,110400.0,110390.0,0.5083625]
[1756785607280,0.003,110400.0,110390.0,0.74246239]
[1756785607586,0.003,110400.0,110390.0,1.06246239]
[1756785608287,0.003,110400.0,110390.0,0.99724226]
[1756785608477,0.003,110400.0,110390.0,1.24724226]
[1756785609480,0.003,110400.0,110390.0,1.31246035]
[1756785610280,0.003,110400.0,110390.0,1.31244312]
[1756785610481,0.003,110400.0,110390.0,1.24724226]
[1756785611083,0.001,110400.0,110390.0,1.3270123]
[1756785611288,0.0741706,110420.0,110410.0,0.08257]
[1756785611479,0.00347,110420.0,110410.0,0.31666989]
[1756785611781,0.00347,110420.0,110410.0,0.08257]
[1756785611987,0.23756989,110420.0,110410.0,0.08257]
[1756785612386,0.00347,110420.0,110410.0,0.08257]
[1756785612577,0.07755785,110420.0,110410.0,0.08257]
[1756785612777,0.00347,110420.0,110410.0,0.08257]
[1756785613489,0.24056989,110420.0,110410.0,0.08257]
[1756785614283,0.24256989,110420.0,110410.0,0.08257]
[1756785614587,0.00847,110420.0,110410.0,0.08257]
[1756785614778,0.24173989,110420.0,110410.0,0.08257]
[1756785615084,0.24256989,110420.0,110410.0,0.08257]
[1756785615686,0.00847,110420.0,110410.0,0.08257]
[1756785617386,0.08123214,110420.0,110410.0,0.08257]
[1756785617587,0.00847,110420.0,110410.0,0.08257]
[1756785618782,0.24256989,110420.0,110410.0,0.08257]
[1756785619690,0.00847,110420.0,110410.0,0.08257]
[1756785619881,0.24256989,110420.0,110410.0,0.08257]
[1756785622084,0.31659254,110420.0,110410.0,0.08257]
[1756785622489,0.08249265,110420.0,110410.0,0.08257]
[1756785622792,0.31659254,110420.0,110410.0,0.08257]
[1756785624193,0.63659254,110420.0,110410.0,0.08257]
[1756785624694,0.31659254,110420.0,110410.0,0.08257]
[1756785625894,0.67576254,110420.0,110410.0,0.04762]
[1756785626090,0.67576254,110420.0,110410.0,0.08257]
[1756785626489,0.67659254,110420.0,110410.0,0.08257]
[1756785626890,0.67659254,110420.0,110400.0,0.06742156]
[1756785626891,0.00347,110410.0,110400.0,0.06742156]
[1756785627090,1.76547016,110410.0,110400.0,0.04762]
[1756785627787,1.76547016,110410.0,110400.0,0.02322]
[1756785628096,1.76647016,110410.0,110400.0,0.02322]
[1756785628296,1.76647016,110410.0,110400.0,0.04762]
[1756785629398,1.76847016,110410.0,110400.0,0.04762]
[1756785630393,1.76847016,110410.0,110390.0,0.03495]
[1756785630594,0.59836989,110400.0,110390.0,0.08257]
[1756785630795,0.91836989,110400.0,110390.0,0.04762]
[1756785631495,1.16836989,110400.0,110390.0,0.04762]
[1756785631699,0.00347,110390.0,110380.0,0.04762]
[1756785631892,1.74472989,110390.0,110380.0,0.04762]
[1756785633198,1.74472989,110390.0,110380.0,0.08257]
[1756785633896,1.74472989,110390.0,110380.0,0.08357]
[1756785634499,1.99472989,110390.0,110380.0,0.001]
[1756785635302,1.76063,110390.0,110380.0,0.001]
[1756785635502,1.99472989,110390.0,110380.0,0.001]
[1756785635804,1.99389989,110390.0,110370.0,0.0549464]
[1756785636107,1.5098,110390.0,110380.0,0.001]
[1756785636309,1.5118,110390.0,110380.0,0.001]
[1756785636510,1.51263,110390.0,110380.0,0.001]
[1756785636700,1.5128,110390.0,110370.0,0.0549464]
[1756785637008,0.59836989,110380.0,110370.0,0.1020664]
[1756785637715,1.42476989,110380.0,110370.0,0.1020664]
[1756785639200,1.75676989,110380.0,110370.0,0.0443764]
[1756785639406,0.00083,110370.0,110360.0,0.08223]
[1756785639704,0.23756989,110370.0,110360.0,0.08223]
[1756785639894,0.93836989,110370.0,110360.0,0.08223]
[1756785640100,0.91836989,110370.0,110360.0,0.08223]
[1756785641512,0.92753979,110370.0,110360.0,0.08223]
[1756785642117,0.92753979,110370.0,110360.0,0.04712]
[1756785643617,1.43397979,110370.0,110360.0,0.08223]
[1756785645014,1.78397979,110370.0,110360.0,0.08223]
[1756785645818,1.43397979,110370.0,110360.0,0.08223]
[1756785646322,1.78397979,110370.0,110360.0,0.08223]
[1756785646723,1.43397979,110370.0,110360.0,0.08223]
[1756785647019,0.60753979,110370.0,110360.0,0.08223]
[1756785647315,1.43401979,110370.0,110360.0,0.08223]
[1756785647619,1.78401979,110370.0,110360.0,0.04712]
[1756785648014,1.78401979,110370.0,110360.0,0.08223]
[1756785648524,0.95753979,110370.0,110360.0,0.08223]
[1756785648712,1.78401979,110370.0,110360.0,0.08223]
[1756785649119,0.95753979,110370.0,110360.0,0.08223]
[1756785649420,1.78401979,110370.0,110360.0,0.08223]
[1756785651316,0.00264,110350.0,110340.0,0.38518]
[1756785651615,0.2558311,110350.0,110340.0,0.08223]
[1756785651821,1.4431111,110350.0,110340.0,0.08223]
[1756785652522,1.4431111,110350.0,110340.0,0.08323]
[1756785653017,1.4431111,110350.0,110340.0,0.08523]
[1756785653810,1.7831111,110350.0,110340.0,0.05012]
[1756785654316,1.85639066,110350.0,110340.0,0.05012]
[1756785656829,1.85639066,110350.0,110340.0,0.003]
[1756785658121,2.34049055,110350.0,110340.0,0.00217]
[1756785658318,2.36105045,110350.0,110340.0,0.00217]
[1756785658516,1.53457045,110350.0,110340.0,0.00217]
[1756785658816,2.36109045,110350.0,110340.0,0.00217]
[1756785659313,2.11209045,110350.0,110340.0,0.00017]
[1756785659516,2.34731714,110350.0,110340.0,0.00017]
[1756785659711,2.34648714,110350.0,110310.0,0.3608]
[1756785659924,0.46895098,110320.0,110310.0,0.44303]
[1756785660126,0.82656,110320.0,110310.0,0.44303]
[1756785660327,1.29551098,110320.0,110310.0,0.44303]
[1756785660523,0.23447549,110320.0,110310.0,0.67750549]
[1756785660721,0.23447549,110320.0,110310.0,0.44303]
[1756785660927,0.23447549,110320.0,110310.0,0.44603]
[1756785661328,0.46895098,110320.0,110310.0,0.44603]
[1756785661524,1.29551098,110320.0,110310.0,0.44603]
[1756785661724,0.47779692,110320.0,110310.0,0.44603]
[1756785662023,1.30435692,110320.0,110310.0,0.44603]
[1756785662525,1.30435692,110320.0,110310.0,0.44803]
[1756785663123,1.30435692,110320.0,110310.0,0.44603]
[1756785663433,1.30435692,110320.0,110310.0,0.44803]
[1756785663620,0.46895098,110320.0,110310.0,0.44803]
[1756785663820,1.29551098,110320.0,110310.0,0.44803]
[1756785664726,1.30469457,110320.0,110310.0,0.44803]
[1756785665027,1.30469457,110320.0,110310.0,0.08723]
[1756785666324,0.47813457,110320.0,110310.0,0.08723]
[1756785666520,1.30473457,110320.0,110310.0,0.08723]
[1756785667136,1.62473457,110320.0,110310.0,0.08723]
[1756785667333,1.30473457,110320.0,110310.0,0.08723]
[1756785669535,0.47813457,110320.0,110310.0,0.08723]
[1756785669738,1.30473457,110320.0,110310.0,0.08723]
[1756785671530,0.37887857,110330.0,110310.0,0.08723]
[1756785671723,0.23447549,110320.0,110310.0,0.32170549]
[1756785671924,0.01807857,110330.0,110320.0,0.08357]
[1756785672128,0.01807857,110330.0,110320.0,0.91252098]
[1756785672336,0.25255406,110330.0,110320.0,0.67804549]
[1756785672530,0.25255406,110330.0,110320.0,1.28884549]
[1756785672733,0.01807857,110330.0,110320.0,1.00884549]
[1756785673040,0.01807857,110330.0,110320.0,1.24332098]
[1756785673241,0.25255406,110330.0,110320.0,1.00884549]
[1756785673642,0.25255406,110330.0,110320.0,1.01184549]
[1756785674142,0.25255406,110330.0,110320.0,0.08657]
[1756785675640,0.25255406,110330.0,110320.0,0.44737]
[1756785676040,0.25255406,110330.0,110320.0,0.08657]
[1756785676641,0.61335406,110330.0,110320.0,0.08657]
[1756785676842,0.98335406,110330.0,110320.0,0.08657]
[1756785677148,0.61335406,110330.0,110320.0,0.32104549]
[1756785677735,0.23447549,110330.0,110320.0,0.68184549]
[1756785677939,1.43102627,110340.0,110330.0,0.03579]
[1756785678136,1.66550176,110340.0,110330.0,0.08357]
[1756785678353,1.43102627,110340.0,110330.0,0.08357]
[1756785679250,1.66550176,110340.0,110330.0,0.08357]
[1756785679444,0.45234077,110350.0,110340.0,0.08357]
[1756785679745,1.67341626,110350.0,110340.0,0.08357]
[1756785680243,1.68235058,110350.0,110340.0,0.08357]
[1756785680748,1.68235058,110350.0,110340.0,0.08457]
[1756785681647,1.68335058,110350.0,110340.0,0.08457]
[1756785681844,0.64283001,110350.0,110340.0,0.08457]
[1756785682046,1.33417118,110350.0,110340.0,0.31904549]
[1756785682251,1.33417118,110350.0,110340.0,0.08457]
[1756785683446,1.09969569,110350.0,110340.0,0.001]
[1756785683648,2.13944729,110350.0,110340.0,0.001]
[1756785684352,2.10865226,110350.0,110340.0,0.001]
[1756785684555,2.10865226,110350.0,110340.0,0.02443]
[1756785685152,2.08809672,110350.0,110340.0,0.02443]
[1756785687247,2.09801672,110350.0,110340.0,0.08457]
[1756785687653,2.09801672,110350.0,110340.0,0.04878]
[1756785689548,1.76801672,110350.0,110340.0,0.04878]
[1756785689754,1.53354123,110350.0,110340.0,0.08457]
[1756785690054,0.70702123,110350.0,110340.0,0.04878]
[1756785690254,1.53350123,110350.0,110340.0,0.04878]
[1756785690654,1.76797672,110350.0,110340.0,0.04878]
[1756785690849,1.7885648,110350.0,110340.0,0.04878]
[1756785691349,1.7785648,110350.0,110340.0,0.04878]
[1756785691749,1.55408931,110350.0,110340.0,0.04878]
[1756785691945,2.1185648,110350.0,110340.0,0.02443]
[1756785692654,2.1185648,110350.0,110340.0,0.001]
[1756785694060,2.09797672,110350.0,110340.0,0.001]
[1756785696262,2.1185639,110350.0,110340.0,0.001]
[1756785696859,2.3685639,110350.0,110340.0,0.001]
[1756785698453,2.36856594,110350.0,110340.0,0.001]
[1756785698961,2.34797672,110350.0,110340.0,0.001]
[1756785699159,2.3685606,110350.0,110340.0,0.001]
[1756785700761,2.34797672,110350.0,110340.0,0.001]
[1756785702361,2.36855731,110350.0,110340.0,0.001]
[1756785702657,2.6030328,110350.0,110340.0,0.001]
[1756785704556,2.60303073,110350.0,110340.0,0.001]
[1756785705761,2.60303073,110350.0,110310.0,0.08381]
[1756785705967,0.82975098,110320.0,110310.0,0.08381]
[1756785706266,1.65615098,110320.0,110310.0,0.08381]
[1756785706863,1.65615098,110320.0,110310.0,0.08781]
[1756785707768,1.65615098,110320.0,110310.0,0.08881]
[1756785707969,1.65615098,110320.0,110310.0,0.11726773]
[1756785708169,1.65615098,110320.0,110310.0,0.05209]
[1756785708561,1.65615098,110320.0,110310.0,0.08881]
[1756785709271,2.03502647,110320.0,110310.0,0.005]
[1756785709474,1.78929917,110320.0,110310.0,0.005]
[1756785709766,1.46042481,110320.0,110310.0,0.32328549]
[1756785709968,1.4399082,110320.0,110310.0,0.08781]
[1756785710161,1.4399082,110320.0,110310.0,0.08381]
[1756785710361,1.67438369,110320.0,110310.0,0.08681]
[1756785710771,1.67638369,110320.0,110310.0,0.08381]
[1756785711270,0.38099271,110320.0,110310.0,0.56828549]
[1756785711460,0.02019271,110320.0,110310.0,0.92908549]
[1756785711664,0.2546682,110320.0,110310.0,0.92908549]
[1756785712167,0.2546682,110320.0,110310.0,0.56828549]
[1756785712368,0.2546682,110320.0,110310.0,0.63346322]
[1756785712869,0.02019271,110320.0,110310.0,0.63346322]
[1756785713074,0.02019271,110320.0,110310.0,0.99426322]
[1756785714074,0.2546682,110320.0,110310.0,0.99426322]
[1756785714278,0.02019271,110320.0,110310.0,0.99426322]
[1756785714775,0.02019271,110320.0,110310.0,1.33426322]
[1756785715679,0.02019271,110320.0,110310.0,1.09978773]
[1756785715877,0.02019271,110320.0,110310.0,1.33426322]
[1756785716769,0.02019271,110320.0,110310.0,0.99426322]
[1756785716979,0.02019271,110320.0,110310.0,0.92908549]
[1756785719179,0.02019271,110320.0,110310.0,0.67908549]
[1756785719576,0.02019271,110320.0,110310.0,1.02908549]
[1756785719772,0.02019271,110320.0,110310.0,1.09426322]
[1756785720381,0.02019271,110320.0,110310.0,0.50978773]
[1756785720582,0.2546682,110320.0,110310.0,0.74426322]
[1756785720882,0.2546682,110320.0,110310.0,0.67908549]
[1756785721481,0.02019271,110320.0,110310.0,0.44461]
[1756785722083,0.002,110320.0,110310.0,0.44461]
[1756785724284,0.002,110320.0,110310.0,0.6790559]
[1756785725081,0.002,110320.0,110310.0,0.44461]
[1756785725281,0.002,110320.0,110310.0,0.74423363]
[1756785725877,0.002,110320.0,110310.0,0.50978773]
[1756785726773,0.002,110320.0,110310.0,0.44461]
[1756785729978,0.002,110320.0,110310.0,0.50978773]
[1756785730686,0.002,110320.0,110310.0,1.05423363]
[1756785730886,0.002,110320.0,110310.0,0.9890559]
[1756785732083,0.002,110320.0,110310.0,0.75461]
[1756785732386,0.002,110320.0,110310.0,0.9890559]
[1756785732585,0.002,110320.0,110310.0,0.9900559]
[1756785733286,0.001,110320.0,110310.0,0.9870859]
[1756785734188,0.001,110320.0,110310.0,0.6770859]
[1756785734382,0.001,110320.0,110310.0,1.5034059]
[1756785735684,0.001,110320.0,110310.0,1.26896]
[1756785736589,0.001,110320.0,110310.0,1.33413773]
[1756785737590,0.001,110320.0,110310.0,1.26896]
[1756785740092,0.001,110320.0,110310.0,1.33413773]
[1756785740890,0.001,110320.0,110310.0,1.69413773]
[1756785741089,0.001,110320.0,110310.0,1.57896]
[1756785741392,0.001,110320.0,110310.0,1.89317594]
[1756785741592,0.001,110320.0,110310.0,1.58317594]
[1756785741793,0.001,110320.0,110310.0,1.92317594]
[1756785742190,0.001,110320.0,110310.0,1.8434059]
[1756785743598,0.001,110320.0,110310.0,1.5034059]
[1756785745703,0.001,110320.0,110310.0,1.56868286]
[1756785745997,0.001,110320.0,110310.0,1.8734059]
[1756785746891,0.001,110320.0,110310.0,1.964058]
[1756785747092,0.001,110320.0,110310.0,2.4485039]
[1756785747700,0.001,110320.0,110310.0,2.52827394]
[1756785748205,0.001,110320.0,110310.0,2.4485039]
[1756785748406,0.001,110320.0,110310.0,1.9796121]
[1756785748606,0.001,110320.0,110310.0,2.4485039]
[1756785753008,0.001,110320.0,110310.0,1.9796121]
[1756785753209,0.001,110320.0,110310.0,2.4485039]
[1756785753610,0.001,110320.0,110310.0,1.6221839]
[1756785753811,0.001,110320.0,110310.0,2.4483439]
[1756785754008,0.001,110320.0,110310.0,2.213898]
[1756785754209,0.001,110320.0,110310.0,2.1232459]
[1756785756309,0.001,110320.0,110310.0,1.06264]
[1756785756513,0.001,110320.0,110310.0,2.0833259]
[1756785758916,0.001,110320.0,110310.0,2.16309594]
[1756785759508,0.001,110320.0,110310.0,2.0836459]
[1756785761417,0.001,110320.0,110310.0,2.16341594]
[1756785762707,0.001,110320.0,110310.0,2.39786184]
[1756785763111,0.001,110320.0,110310.0,1.57130184]
[1756785763311,0.001,110320.0,110310.0,0.49161004]
[1756785763312,0.4854459,110320.0,110310.0,0.49161004]
[1756785763511,0.4854459,110320.0,110310.0,0.47703627]
[1756785763718,0.4854459,110320.0,110310.0,1.30339627]
[1756785764422,0.4854459,110320.0,110310.0,0.47703627]
[1756785764610,0.4854459,110320.0,110310.0,1.30331627]
[1756785764820,0.4854459,110320.0,110310.0,1.23812]
[1756785765021,0.8462459,110320.0,110310.0,1.23812]
[1756785765325,1.1662459,110320.0,110310.0,1.23812]
[1756785766124,1.1662459,110320.0,110310.0,0.90808]
[1756785766423,1.1662459,110320.0,110310.0,0.08184]
[1756785766617,1.1662459,110320.0,110310.0,0.72308]
[1756785766923,1.1662459,110320.0,110310.0,0.90808]
[1756785767317,1.1662459,110320.0,110310.0,0.08184]
[1756785767511,1.1662459,110320.0,110310.0,0.79464]
[1756785767718,1.1662459,110320.0,110310.0,0.08184]
[1756785767918,1.1662459,110320.0,110310.0,0.80936]
[1756785768118,1.1662459,110320.0,110310.0,0.908]
[1756785768325,1.1662459,110320.0,110310.0,0.08184]
[1756785768526,1.1662459,110320.0,110310.0,0.80936]
[1756785768823,1.1662459,110320.0,110310.0,0.08184]
[1756785769418,0.9318,110320.0,110310.0,0.40408]
[1756785769622,1.1662459,110320.0,110310.0,0.91076]
[1756785769825,0.9318,110320.0,110310.0,0.91076]
[1756785770025,1.1662459,110320.0,110310.0,0.08408]
[1756785770828,1.2062459,110320.0,110310.0,0.86072]
[1756785771028,1.2062459,110320.0,110310.0,0.91084]
[1756785771329,1.1962459,110320.0,110310.0,1.28084]
[1756785771532,1.1962459,110320.0,110310.0,0.45408]
[1756785771718,1.1962459,110320.0,110310.0,0.08408]
[1756785771918,1.1962459,110320.0,110310.0,0.86188]
[1756785772120,1.1962459,110320.0,110310.0,0.91076]
[1756785773228,0.8462459,110320.0,110310.0,0.91076]
[1756785773416,1.1762459,110320.0,110310.0,0.91076]
[1756785775116,1.1762459,110320.0,110310.0,0.08408]
[1756785775320,1.1762459,110320.0,110310.0,0.86452]
[1756785775622,1.1762459,110320.0,110310.0,0.91052]
[1756785775823,0.9418,110320.0,110310.0,1.28048]
[1756785776127,1.1762459,110320.0,110310.0,0.91048]
[1756785777025,0.251,110320.0,110310.0,1.29048]
[1756785778030,0.251,110320.0,110310.0,1.29108]
[1756785779236,0.001,110320.0,110310.0,1.29108]
[1756785780324,0.2354459,110320.0,110310.0,1.29108]
[1756785781233,0.5962459,110320.0,110310.0,1.29108]
[1756785781431,0.9162459,110320.0,110310.0,1.29092]
[1756785781731,0.6818,110320.0,110310.0,1.29092]
[1756785782033,0.9162459,110320.0,110310.0,1.29092]
[1756785782532,0.9162459,110320.0,110310.0,0.46408]
[1756785782733,0.9162459,110320.0,110310.0,1.29092]
[1756785783127,0.9162459,110320.0,110310.0,0.08408]
[1756785783434,1.15076662,110320.0,110310.0,0.91092]
[1756785784435,1.15076662,110320.0,110310.0,0.08408]
[1756785784637,1.15076662,110320.0,110310.0,0.91076]
[1756785784929,0.59628331,110320.0,110310.0,0.68856331]
[1756785785139,0.59628331,110320.0,110310.0,1.28152]
[1756785785339,0.59628331,110320.0,110310.0,0.68856331]
[1756785785537,0.59628331,110320.0,110310.0,1.51600331]
[1756785785939,0.3618,110320.0,110310.0,1.51600331]
[1756785786139,0.001,110320.0,110310.0,1.76600331]
[1756785786435,0.23548331,110320.0,110310.0,1.76588331]
[1756785787443,0.23548331,110320.0,110310.0,1.53136]
[1756785787643,0.23548331,110320.0,110310.0,1.76584331]
[1756785788343,0.23548331,110320.0,110310.0,1.53136]
[1756785788543,0.001,110320.0,110310.0,1.53136]
[1756785788746,0.23548331,110320.0,110310.0,1.76584331]
[1756785788942,1.19076662,110320.0,110310.0,0.04969]
[1756785789243,1.64580742,110320.0,110310.0,0.89421]
[1756785789449,1.10132476,110320.0,110310.0,0.89437]
[1756785789638,1.69580807,110320.0,110310.0,0.05305]
[1756785789832,2.53724807,110320.0,110310.0,0.00553]
[1756785790243,2.30276476,110320.0,110310.0,0.02758]
[1756785790446,1.60928145,110320.0,110310.0,0.08791]
[1756785790743,1.00232476,110320.0,110310.0,0.08791]
[1756785791250,0.53335814,110320.0,110310.0,0.08791]
[1756785791543,1.16232476,110320.0,110310.0,0.08791]
[1756785792942,1.41232476,110320.0,110310.0,0.02758]
[1756785793149,1.41232476,110320.0,110310.0,0.08791]
[1756785793844,1.16232476,110320.0,110310.0,0.08791]
[1756785798854,0.69335814,110320.0,110310.0,0.08791]
[1756785799050,1.16232476,110320.0,110310.0,0.08791]
[1756785799848,0.69335814,110320.0,110310.0,0.08791]
[1756785800048,1.16232476,110320.0,110310.0,0.08791]
[1756785803054,1.16232476,110320.0,110310.0,0.00453]
[1756785803656,1.16232476,110320.0,110310.0,0.02758]
[1756785805560,2.00496476,110320.0,110310.0,0.02758]
[1756785805861,1.16232476,110320.0,110310.0,0.00453]
[1756785806159,1.16232476,110320.0,110310.0,0.02758]
[1756785806364,1.16232476,110320.0,110310.0,0.00453]
[1756785807463,1.41232476,110320.0,110310.0,0.00453]
[1756785808859,1.64680807,110320.0,110310.0,0.00453]
[1756785810267,1.41232476,110320.0,110310.0,0.00453]
[1756785810473,1.41232476,110320.0,110310.0,0.02758]
[1756785810970,1.16232476,110320.0,110310.0,0.02758]
[1756785811559,0.69335814,110320.0,110310.0,0.05205]
[1756785811761,1.16232476,110320.0,110310.0,0.05205]
[1756785811967,1.16232476,110320.0,110310.0,0.08791]
[1756785812466,1.16232476,110320.0,110310.0,0.05205]
[1756785813868,1.16232476,110320.0,110310.0,0.08791]
[1756785814573,0.69335814,110320.0,110310.0,0.08791]
[1756785814861,1.16232476,110320.0,110310.0,0.08791]
[1756785815066,0.31648331,110320.0,110310.0,0.32239331]
[1756785815460,0.55096662,110320.0,110310.0,0.32239331]
[1756785815659,0.31648331,110320.0,110310.0,0.08791]
[1756785816865,0.082,110320.0,110310.0,0.08791]
[1756785817069,0.60648331,110320.0,110310.0,0.08791]
[1756785817864,0.052,110320.0,110310.0,0.08791]
[1756785818071,0.23648331,110320.0,110310.0,0.08791]
[1756785818271,0.59648331,110320.0,110310.0,0.08791]
[1756785819662,0.052,110320.0,110310.0,0.08791]
[1756785819863,0.83096662,110320.0,110310.0,0.08791]
[1756785820771,0.85210574,110320.0,110310.0,0.08791]
[1756785821865,1.21290574,110320.0,110310.0,0.08791]
[1756785824059,0.45393912,110320.0,110310.0,0.08791]
[1756785824370,1.20290574,110320.0,110310.0,0.08791]
[1756785826370,0.45393912,110320.0,110310.0,0.08791]
[1756785826570,1.19290574,110320.0,110310.0,0.08791]
[1756785830079,0.85290574,110320.0,110310.0,0.08791]
[1756785830280,1.19290574,110320.0,110310.0,0.08791]
[1756785830579,1.21290574,110320.0,110310.0,0.08791]
[1756785830779,1.19176662,110320.0,110310.0,0.08791]
[1756785833481,1.19176662,110320.0,110310.0,0.05205]
[1756785835084,1.18176662,110320.0,110310.0,0.05205]
[1756785836184,1.2026565,110320.0,110310.0,0.05205]
[1756785839986,1.2036565,110320.0,110310.0,0.05205]
[1756785840188,0.43468988,110320.0,110310.0,0.0862]
[1756785840389,1.1836565,110320.0,110310.0,0.05205]
[1756785841285,0.43468988,110320.0,110310.0,0.34102991]
[1756785841489,0.003,110320.0,110310.0,1.25150079]
[1756785841789,0.003,110320.0,110310.0,1.57150079]
[1756785841986,0.003,110320.0,110310.0,1.66215269]
[1756785842189,0.003,110320.0,110310.0,1.59696512]
[1756785842689,0.001,110320.0,110310.0,1.66316788]
[1756785843086,0.01822707,110330.0,110310.0,1.59796512]
[1756785843289,0.01822707,110330.0,110320.0,1.70167662]
[1756785843489,0.01822707,110330.0,110320.0,1.48706702]
[1756785844690,0.01822707,110330.0,110320.0,1.49159702]
[1756785845093,0.01922707,110330.0,110320.0,1.49159702]
[1756785846393,0.01922707,110330.0,110320.0,0.44775]
[1756785846599,0.01922707,110330.0,110320.0,1.51934702]
[1756785847598,0.01922707,110330.0,110320.0,1.52034702]
[1756785847896,0.01822707,110330.0,110320.0,1.52034702]
[1756785849400,0.01822707,110330.0,110320.0,1.54034702]
[1756785851294,0.01822707,110330.0,110320.0,0.70310702]
[1756785851494,0.01822707,110330.0,110320.0,1.54074702]
[1756785855402,0.01822707,110330.0,110320.0,1.30639]
[1756785855596,0.67764155,110350.0,110320.0,1.54074702]
[1756785855899,1.01851949,110350.0,110340.0,0.08116]
[1756785857403,1.01951949,110350.0,110340.0,0.08116]
[1756785858202,1.26951949,110350.0,110330.0,0.91804]
[1756785858403,0.23435702,110340.0,110330.0,0.91804]
[1756785858602,0.37,110340.0,110330.0,0.91804]
[1756785859708,0.37,110340.0,110330.0,0.08116]
[1756785859900,0.37,110340.0,110330.0,0.91772]
[1756785860606,0.60435702,110340.0,110330.0,0.91772]
[1756785861006,0.60535702,110340.0,110330.0,0.91772]
[1756785862710,0.371,110340.0,110330.0,0.91772]
[1756785864400,0.371,110340.0,110330.0,0.9168]
[1756785864606,0.60535702,110340.0,110330.0,0.9168]
[1756785865111,0.60535702,110340.0,110330.0,0.92133]
[1756785866013,0.371,110340.0,110330.0,0.92133]
[1756785866210,0.60535702,110340.0,110330.0,0.92133]
[1756785866811,0.371,110340.0,110330.0,0.08569]
[1756785867012,0.60535702,110340.0,110330.0,0.92177]
[1756785868618,0.371,110340.0,110330.0,0.92177]
[1756785868818,0.60535702,110340.0,110330.0,0.92177]
[1756785870307,0.371,110340.0,110330.0,0.92177]
[1756785870915,0.391937,110340.0,110330.0,1.47612702]
[1756785871120,0.001,110340.0,110330.0,2.42649593]
[1756785871623,0.001,110340.0,110330.0,2.51713303]
[1756785872922,0.001,110340.0,110330.0,2.52624969]
[1756785875024,0.001,110340.0,110330.0,2.63624969]
[1756785875222,0.001,110340.0,110330.0,2.6361764]
[1756785882533,0.001,110340.0,110330.0,2.9018764]
[1756785882728,0.01849172,110390.0,110380.0,0.04789]
[1756785882929,0.36841936,110390.0,110380.0,1.15128702]
[1756785883532,0.34849172,110390.0,110380.0,1.15128702]
[1756785884132,0.35449172,110390.0,110380.0,1.15580702]
[1756785884535,0.35449172,110390.0,110380.0,1.51660702]
[1756785884936,0.35449172,110390.0,110380.0,1.51636702]
[1756785885230,0.35449172,110390.0,110380.0,1.51632702]
[1756785885427,0.35449172,110390.0,110380.0,0.00452]
[1756785885428,1.21955826,110390.0,110380.0,0.00452]
[1756785885625,1.22455826,110390.0,110380.0,0.00452]
[1756785885825,1.22455644,110390.0,110380.0,0.00452]
[1756785886427,1.45891346,110390.0,110380.0,0.00452]
[1756785886732,1.22455644,110390.0,110380.0,0.00452]
[1756785886935,1.45891346,110390.0,110380.0,0.00452]
[1756785887226,1.22455644,110390.0,110380.0,0.00452]
[1756785887620,1.45891346,110390.0,110380.0,0.00452]
[1756785888333,1.45891346,110390.0,110330.0,0.10185404]
[1756785888627,0.23435702,110340.0,110330.0,0.08189]
[1756785888828,0.56435702,110340.0,110330.0,0.04789]
[1756785889035,0.33,110340.0,110330.0,0.08189]
[1756785891432,0.33,110340.0,110330.0,0.31624702]
[1756785892138,0.33,110340.0,110330.0,0.08189]
[1756785892738,0.92515702,110340.0,110320.0,0.10212427]
[1756785892941,0.23435702,110330.0,110320.0,0.08189]
[1756785893237,0.94515702,110330.0,110320.0,0.04789]
[1756785894031,0.96374519,110330.0,110320.0,0.04789]
[1756785894639,0.96374519,110330.0,110320.0,0.0232]
[1756785895638,0.96674519,110330.0,110320.0,0.0232]
[1756785895838,1.04266147,110330.0,110320.0,0.04789]
[1756785900344,1.04266147,110330.0,110320.0,0.08189]
[1756785900641,1.04266147,110330.0,110310.0,0.9353966]
[1756785900839,0.3608,110320.0,110310.0,0.1022366]
[1756785901039,0.94515702,110320.0,110310.0,0.1022366]
[1756785902435,0.6908,110320.0,110310.0,0.1022366]
[1756785902842,0.6928,110320.0,110310.0,0.1022366]
[1756785905648,0.002,110320.0,110310.0,0.69750665]
[1756785905942,0.002,110320.0,110310.0,1.23071716]
[1756785906140,0.002,110320.0,110310.0,0.99624711]
[1756785906535,0.002,110320.0,110310.0,0.63544711]
[1756785909744,0.002,110320.0,110310.0,1.23071716]
[1756785910046,0.002,110320.0,110310.0,1.5319767]
[1756785910247,0.002,110320.0,110310.0,1.26700094]
[1756785911148,0.01858817,110330.0,110320.0,0.083]
[1756785911348,0.18858817,110330.0,110320.0,1.79501804]